bitfinex/quotes_SOLUSD_20250922
["timestamp","ask_amount","ask_price","bid_price","bid_amount"]
[1758552791392,4.50840125,221.81,221.77,36.94]
[1758552791781,5.17826065,221.82,221.77,36.94]
[1758552792307,0.67,221.86,221.79,2.48514217]
[1758552792514,5.17735319,221.86,221.8,0.7]
[1758552792889,2.48514217,221.9,221.81,2.48514217]
[1758552793211,0.67,221.89,221.82,36.24]
[1758552793403,0.67,221.88,221.82,36.24]
[1758552794393,15.77500337,221.87,221.82,36.24]
[1758552794587,2.48514217,221.85,221.81,36.24]
[1758552794783,2.48514217,221.83,221.81,36.24]
[1758552794998,0.67,221.82,221.81,36.24]
[1758552795595,2.48514217,221.83,221.79,36.24]
[1758552795794,3.15514217,221.83,221.79,36.24]
[1758552796710,4.50815976,221.82,221.79,36.24]
[1758552798594,26.0,221.86,221.8,0.68]
[1758552798807,0.67,221.85,221.79,36.24]
[1758552798991,3.15514217,221.85,221.79,36.24]
[1758552799582,2.48514217,221.85,221.79,36.24]
[1758552799810,2.48514217,221.83,221.79,36.24]
[1758552800312,2.48514217,221.84,221.79,36.92]
[1758552800611,3.15514217,221.84,221.79,36.92]
[1758552800785,4.50795654,221.83,221.79,36.92]
[1758552800988,4.50771978,221.85,221.78,4.50888168]
[1758552801198,4.50771978,221.85,221.8,0.68]
[1758552801709,0.67,221.84,221.79,36.24]
[1758552801903,3.15514217,221.84,221.79,36.92]
[1758552802306,0.67,221.83,221.8,36.24]
[1758552802613,2.48514217,221.84,221.81,0.68]
[1758552803110,0.67,221.87,221.81,0.68]
[1758552803312,3.15514217,221.87,221.81,0.68]
[1758552803916,4.50753677,221.86,221.81,0.68]
[1758552804112,5.17753677,221.86,221.81,0.68]
[1758552805219,0.67,221.85,221.79,36.24]
[1758552805601,0.67,221.85,221.79,36.92]
[1758552807194,4.50775333,221.84,221.79,36.92]
[1758552807494,4.50775333,221.84,221.8,0.69]
[1758552808618,0.69,221.83,221.8,36.22]
[1758552808993,4.50775333,221.84,221.81,0.69]
[1758552809191,4.50734697,221.86,221.81,0.69]
[1758552809423,5.19734697,221.86,221.81,0.69]
[1758552809926,0.69,221.85,221.81,0.69]
[1758552810921,4.50775333,221.84,221.81,0.69]
[1758552811616,5.19673757,221.89,221.82,0.69]
[1758552811802,5.19673757,221.89,221.82,3.17514217]
[1758552811995,0.69,221.88,221.82,3.17514217]
[1758552812196,0.69,221.87,221.8,3.17514217]
[1758552812396,0.69,221.86,221.81,36.2]
[1758552812620,0.69,221.85,221.81,36.2]
[1758552812938,0.69,221.87,221.82,0.69]
[1758552813096,4.50734697,221.86,221.82,0.69]
[1758552813736,4.50694068,221.88,221.83,0.69]
[1758552813928,5.19694068,221.88,221.83,0.69]
[1758552814224,5.19694068,221.88,221.82,2.48514217]
[1758552814394,5.19694068,221.88,221.82,3.17514217]
[1758552815300,5.19694068,221.88,221.82,7.6833001]
[1758552815824,5.19694068,221.88,221.82,5.19815793]
[1758552816324,7.68184822,221.9,221.83,0.69]
[1758552818636,4.50694068,221.88,221.83,0.69]
[1758552819028,5.19694068,221.88,221.83,0.69]
[1758552819210,0.69,221.87,221.82,4.50815793]
[1758552819525,0.69,221.87,221.82,5.19815793]
[1758552819727,4.50694068,221.88,221.82,0.69]
[1758552820036,0.69,221.87,221.82,0.69]
[1758552820611,0.69,221.87,221.82,4.50815842]
[1758552820929,0.69,221.87,221.83,0.69]
[1758552821319,5.19714384,221.87,221.83,0.69]
[1758552822333,5.19714384,221.87,221.81,40.70829814]
[1758552822536,5.19714384,221.87,221.81,36.89]
[1758552823215,0.69,221.86,221.81,36.2]
[1758552823534,0.69,221.85,221.81,36.2]
[1758552823710,0.69,221.84,221.77,0.69]
[1758552823915,1.59069055,221.83,221.78,36.18]
[1758552824116,0.69,221.82,221.78,36.18]
[1758552824328,1.59069055,221.83,221.78,36.18]
[1758552824329,0.69,221.81,221.78,36.18]
[1758552825216,4.50835421,221.82,221.78,36.18]
[1758552825423,5.19835421,221.82,221.78,36.18]
[1758552826032,4.50835421,221.82,221.78,36.87]
[1758552826339,4.50835421,221.82,221.79,36.16]
[1758552826853,4.50835421,221.82,221.79,36.85]
[1758552827041,4.50795654,221.83,221.79,36.85]
[1758552827922,4.50795654,221.83,221.8,0.69]
[1758552828120,4.50795654,221.83,221.81,0.69]
[1758552828325,4.50795654,221.83,221.79,36.16]
[1758552828840,6.78763123,221.88,221.8,0.69]
[1758552829231,6.78763123,221.88,221.8,2.28069055]
[1758552829543,0.69,221.87,221.79,36.16]
[1758552829843,0.69,221.86,221.79,36.16]
[1758552830137,0.69,221.85,221.79,36.16]
[1758552830339,0.69,221.84,221.78,0.69]
[1758552830532,0.69,221.84,221.79,36.16]
[1758552830841,0.69,221.83,221.79,36.16]
[1758552831136,5.19797737,221.83,221.79,36.16]
[1758552831839,0.69,221.82,221.8,36.16]
[1758552832620,4.50797737,221.83,221.8,36.16]
[1758552832820,5.19797737,221.83,221.8,36.16]
[1758552833246,4.50797737,221.83,221.8,36.85]
[1758552833831,4.50797737,221.83,221.8,36.16]
[1758552834043,4.50775333,221.84,221.8,36.16]
[1758552834226,5.19775333,221.84,221.8,36.16]
[1758552834429,5.19775333,221.84,221.8,36.85]
[1758552834825,5.19775333,221.84,221.8,36.16]
[1758552837240,4.50756696,221.85,221.81,0.69]
[1758552837829,4.50756696,221.85,221.82,0.69]
[1758552838452,4.50714382,221.87,221.82,0.69]
[1758552838860,4.50696389,221.88,221.83,0.69]
[1758552839025,4.50696389,221.88,221.84,0.69]
[1758552839227,4.50696389,221.88,221.84,36.81]
[1758552839623,5.15696389,221.88,221.84,36.81]
[1758552840530,4.50696389,221.88,221.84,36.81]
[1758552841236,4.50696389,221.88,221.84,36.12]
[1758552841437,1.59069055,221.86,221.84,36.12]
[1758552841739,0.65,221.85,221.84,36.12]
[1758552842345,0.65,221.85,221.79,0.69]
[1758552842346,4.50775333,221.84,221.75,13.59559401]
[1758552842548,1.59069055,221.81,221.74,0.69]
[1758552842752,2.24069055,221.81,221.75,36.12]
[1758552843341,2.24069055,221.81,221.76,36.12]
[1758552843543,0.65,221.8,221.76,36.12]
[1758552843741,0.65,221.8,221.76,36.81]
[1758552843941,1.59069055,221.81,221.76,36.81]
[1758552844142,2.24069055,221.81,221.76,36.81]
[1758552844355,4.50856627,221.8,221.76,36.81]
[1758552844732,5.15856627,221.8,221.76,36.12]
[1758552845035,4.50856627,221.8,221.76,36.81]
[1758552845340,0.65,221.85,221.77,0.69]
[1758552845531,1.59069055,221.83,221.77,0.69]
[1758552846048,0.65,221.83,221.77,0.69]
[1758552846230,1.59069055,221.82,221.77,0.69]
[1758552846551,4.50836301,221.81,221.77,0.69]
[1758552846767,4.50818506,221.82,221.78,0.69]
[1758552847260,4.50818506,221.82,221.79,0.69]
[1758552847432,4.50775333,221.84,221.8,36.79]
[1758552847635,5.15775333,221.84,221.8,36.79]
[1758552848158,0.65,221.83,221.8,36.1]
[1758552848356,0.65,221.83,221.78,0.69]
[1758552848357,4.50815976,221.82,221.81,36.1]
[1758552848564,5.15815976,221.82,221.75,13.59559401]
[1758552848770,5.15815976,221.82,221.76,36.79]
[1758552849146,5.15815976,221.82,221.77,0.69]
[1758552849463,0.65,221.81,221.78,36.1]
[1758552850262,15.77855918,221.82,221.78,36.1]
[1758552850642,16.42855918,221.82,221.78,36.1]
[1758552851263,4.50856627,221.8,221.78,36.1]
[1758552852151,4.50836062,221.82,221.78,36.1]
[1758552852356,4.50836062,221.82,221.79,0.69]
[1758552852861,4.50836062,221.82,221.78,36.1]
[1758552853060,4.50836062,221.82,221.78,36.79]
[1758552853663,5.22836062,221.82,221.78,36.79]
[1758552853863,4.50797919,221.83,221.79,0.66]
[1758552854156,5.22797919,221.83,221.78,36.1]
[1758552854360,1.59069055,221.8,221.74,0.66]
[1758552854572,1.59069055,221.78,221.71,13.66418908]
[1758552854739,1.59069055,221.78,221.75,36.08]
[1758552855152,2.31069055,221.78,221.75,36.08]
[1758552855364,0.72,221.77,221.75,36.08]
[1758552855678,4.50897285,221.78,221.75,36.08]
[1758552855881,6.8196634,221.78,221.75,36.08]
[1758552857586,6.0996634,221.78,221.75,36.08]
[1758552857750,0.72,221.77,221.75,36.08]
[1758552858148,2.31069055,221.76,221.7,27.33243924]
[1758552858347,1.59069055,221.76,221.72,36.08]
[1758552858573,1.59069055,221.76,221.72,36.74]
[1758552859348,1.59069055,221.76,221.72,36.08]
[1758552859548,1.59069055,221.76,221.73,0.66]
[1758552860262,6.10018085,221.76,221.73,0.66]
[1758552861476,4.50917617,221.77,221.72,36.08]
[1758552861678,6.81967694,221.78,221.73,0.66]
[1758552861984,6.81967694,221.78,221.74,0.66]
[1758552862169,6.81967694,221.78,221.72,40.59018861]
[1758552862359,6.81967694,221.78,221.72,41.25018861]
[1758552863882,5.22815976,221.82,221.73,0.66]
[1758552864074,4.50815976,221.82,221.74,1.59069055]
[1758552864381,4.50815976,221.82,221.75,0.66]
[1758552864575,4.50815976,221.82,221.76,36.06]
[1758552864764,4.50815976,221.82,221.77,0.66]
[1758552865085,4.50815976,221.82,221.78,0.66]
[1758552866678,4.50785714,221.84,221.79,0.66]
[1758552866861,4.50785714,221.84,221.77,4.50912169]
[1758552867062,5.21785714,221.84,221.78,0.66]
[1758552867264,5.21785714,221.84,221.78,0.72]
[1758552867481,1.59069055,221.83,221.79,36.06]
[1758552867662,2.30069055,221.83,221.79,36.06]
[1758552868871,4.50815976,221.82,221.79,36.06]
[1758552870182,4.50815976,221.82,221.79,36.78]
[1758552870968,4.50815976,221.82,221.79,36.06]
[1758552871368,4.50815976,221.82,221.79,36.78]
[1758552871873,4.50815976,221.82,221.79,36.06]
[1758552873088,4.50795654,221.83,221.79,36.06]
[1758552873288,5.21795654,221.83,221.79,36.06]
[1758552873590,5.21795654,221.83,221.79,36.78]
[1758552875499,2.30069055,221.82,221.79,36.06]
[1758552875682,0.71,221.81,221.79,36.06]
[1758552876279,15.77784789,221.83,221.79,36.06]
[1758552876595,1.59069055,221.81,221.79,36.06]
[1758552877166,4.50856627,221.8,221.79,36.06]
[1758552877787,6.09906123,221.81,221.79,36.06]
[1758552880197,6.09906123,221.81,221.77,0.72]
[1758552880397,6.09906123,221.81,221.75,12.86007388]
[1758552880398,1.59069055,221.79,221.75,12.86007388]
[1758552880586,2.48834444,221.76,221.75,48.86007388]
[1758552880902,2.48834444,221.76,221.75,36.0]
[1758552882386,6.99772394,221.76,221.75,36.0]
[1758552882588,18.98117271,221.76,221.74,36.0]
[1758552883101,4.5093795,221.76,221.74,36.0]
[1758552884391,5.2193795,221.76,221.74,36.0]
[1758552885511,4.5093795,221.76,221.74,36.0]
[1758552887296,5.2193795,221.76,221.74,36.0]
[1758552887482,15.78282827,221.76,221.68,4.5093795]
[1758552887808,2.48834444,221.73,221.69,35.98]
[1758552888509,4.51019303,221.72,221.69,35.98]
[1758552891515,6.99833718,221.73,221.69,35.98]
[1758552891697,4.5093795,221.76,221.69,35.98]
[1758552891915,4.5093795,221.76,221.69,40.49069354]
[1758552893028,2.48834444,221.76,221.69,40.49069354]
[1758552893224,2.48834444,221.76,221.7,0.72]
[1758552893821,15.7821166,221.77,221.7,0.72]
[1758552894021,2.48834444,221.76,221.7,0.72]
[1758552895301,15.78354001,221.75,221.66,13.56391998]
[1758552895507,15.78354001,221.75,221.65,36.06]
[1758552895702,2.48834444,221.7,221.66,0.72]
[1758552896026,2.48834444,221.72,221.67,0.72]
[1758552896226,15.78354001,221.75,221.65,36.06]
[1758552896412,2.48834444,221.73,221.67,0.72]
[1758552897416,4.51019303,221.72,221.67,0.72]
[1758552898435,18.27402006,221.72,221.67,0.72]
[1758552899033,6.99853747,221.72,221.67,0.72]
[1758552899611,4.50917617,221.77,221.68,0.71]
[1758552899814,6.99752061,221.77,221.68,0.71]
[1758552900441,18.27046104,221.77,221.68,0.71]
[1758552900736,15.7821166,221.77,221.68,0.71]
[1758552900916,2.48834444,221.75,221.68,0.71]
[1758552901635,4.50978623,221.74,221.68,0.71]
[1758552902545,2.48834444,221.74,221.68,0.71]
[1758552902710,6.99785275,221.76,221.68,0.71]
[1758552903111,18.27130152,221.76,221.68,0.71]
[1758552903333,6.99785275,221.76,221.68,0.71]
[1758552903533,6.99785275,221.76,221.69,35.94]
[1758552904036,6.99785275,221.76,221.7,35.94]
[1758552904538,18.27130152,221.76,221.7,35.94]
[1758552905125,18.27130152,221.76,221.69,0.71]
[1758552905645,18.27130152,221.76,221.7,35.94]
[1758552906238,4.50950831,221.76,221.71,0.71]
[1758552906431,4.50950831,221.76,221.7,35.94]
[1758552907941,4.50950831,221.76,221.71,0.71]
[1758552908116,4.50950831,221.76,221.72,0.71]
[1758552908522,4.50950831,221.76,221.7,36.65]
[1758552908827,4.50950831,221.76,221.71,0.71]
[1758552909145,4.50950831,221.76,221.72,0.71]
[1758552909519,4.50950831,221.76,221.7,36.65]
[1758552909719,2.48834444,221.77,221.71,0.71]
[1758552910139,6.9975286,221.77,221.71,0.71]
[1758552911348,6.9975286,221.77,221.7,41.16057904]
[1758552912222,4.50856627,221.8,221.71,0.71]
[1758552912441,26.0,221.81,221.71,0.71]
[1758552912820,2.48834444,221.77,221.71,0.71]
[1758552913251,2.48834444,221.76,221.72,35.92]
[1758552913424,30.5083948,221.81,221.72,35.92]
[1758552913425,41.77930233,221.81,221.72,35.92]
[1758552913741,2.48834444,221.74,221.68,35.92]
[1758552913948,2.48834444,221.71,221.68,35.92]
[1758552914125,6.99890472,221.71,221.68,35.92]
[1758552914450,4.51056028,221.71,221.68,35.92]
[1758552915246,6.99854801,221.72,221.68,35.92]
[1758552915625,15.78568616,221.72,221.68,35.92]
[1758552915837,2.48834444,221.71,221.68,35.92]
[1758552916044,15.78568616,221.72,221.68,35.92]
[1758552916228,15.78282827,221.76,221.68,35.92]
[1758552916432,2.48834444,221.72,221.68,35.92]
[1758552917645,2.48834444,221.7,221.65,0.1]
[1758552917822,2.48834444,221.66,221.65,0.1]
[1758552918218,6.99975831,221.66,221.65,0.1]
[1758552921444,2.48834444,221.66,221.65,0.1]
[1758552923637,4.51141387,221.66,221.65,0.1]
[1758552926657,26.0,221.64,221.55,2.48834444]
[1758552926859,2.48834444,221.62,221.55,2.48834444]
[1758552927152,2.48834444,221.62,221.53,2.48834444]
[1758552927356,2.48834444,221.62,221.51,35.9]
[1758552927654,2.48834444,221.62,221.53,2.48834444]
[1758552927953,2.48834444,221.62,221.51,35.9]
[1758552927954,2.48834444,221.58,221.5,35.9]
[1758552928331,2.48834444,221.58,221.5,38.38834444]
[1758552928531,4.51324637,221.57,221.5,38.38834444]
[1758552929034,15.79636231,221.57,221.5,38.38834444]
[1758552929229,15.79636231,221.57,221.44,0.7]
[1758552929439,2.48834444,221.56,221.48,2.48834444]
[1758552930664,15.7977883,221.55,221.48,2.48834444]
[1758552931262,2.48834444,221.54,221.45,2.48834444]
[1758552931559,2.48834444,221.54,221.44,38.36834444]
[1758552931764,18.28613274,221.55,221.46,2.48834444]
[1758552931959,15.7977883,221.55,221.48,2.48834444]
[1758552932344,18.28613274,221.55,221.48,2.48834444]
[1758552932667,2.48834444,221.51,221.42,35.88]
[1758552932866,2.48834444,221.51,221.42,38.36834444]
[1758552933092,2.48834444,221.51,221.36,13.59559401]
[1758552933261,2.48834444,221.51,221.44,2.48834444]
[1758552933946,2.48834444,221.51,221.41,35.88]
[1758552934151,2.48834444,221.51,221.43,2.48834444]
[1758552934373,26.0,221.52,221.41,35.88]
[1758552934544,15.80278128,221.48,221.41,35.88]
[1758552934739,15.80278128,221.48,221.34,13.5811132]
[1758552934740,2.48834444,221.47,221.34,13.5811132]
[1758552935046,2.48834444,221.46,221.38,2.48834444]
[1758552935359,26.0,221.45,221.37,2.48834444]
[1758552935952,26.0,221.45,221.32,40.05814945]
[1758552936266,26.0,221.45,221.32,35.54]
[1758552936444,26.0,221.45,221.36,2.48834444]
[1758552936645,4.51589595,221.44,221.38,2.48834444]
[1758552937754,4.51589595,221.44,221.32,35.54]
[1758552937949,4.51589595,221.44,221.36,2.48834444]
[1758552938270,4.51589595,221.44,221.32,51.3540828]
[1758552938271,30.51589595,221.44,221.32,51.3540828]
[1758552938444,30.51589595,221.44,221.37,2.48834444]
[1758552938771,4.51589595,221.44,221.33,35.88]
[1758552938946,4.51589595,221.44,221.37,2.48834444]
[1758552940062,2.48834444,221.46,221.37,2.48834444]
[1758552940063,39.7772707,221.46,221.37,2.48834444]
[1758552940457,37.28892626,221.46,221.37,2.48834444]
[1758552940659,28.48834444,221.46,221.37,7.0056521]
[1758552940974,26.0,221.46,221.38,2.48834444]
[1758552941275,2.48834444,221.45,221.38,2.48834444]
[1758552941578,2.48834444,221.43,221.32,4.5182186]
[1758552941757,2.48834444,221.43,221.34,2.48834444]
[1758552941954,15.80706349,221.42,221.34,2.48834444]
[1758552942577,17.40465839,221.42,221.34,1.5975949]
[1758552943975,17.40465839,221.42,221.32,4.5183414]
[1758552944164,17.40465839,221.42,221.35,1.5975949]
[1758552944471,17.40465839,221.42,221.31,35.88]
[1758552944672,15.80706349,221.42,221.34,1.5975949]
[1758552945971,16.47706349,221.42,221.32,4.51822154]
[1758552946262,15.80706349,221.42,221.32,4.51822154]
[1758552946464,0.67,221.41,221.32,4.51822154]
[1758552946661,2.2675949,221.41,221.34,1.5975949]
[1758552946866,4.51671183,221.4,221.32,4.51822154]
[1758552947072,4.51671183,221.4,221.34,1.5975949]
[1758552947649,4.51671183,221.4,221.32,4.51822154]
[1758552949575,4.51671183,221.4,221.31,35.88]
[1758552949884,15.80849141,221.4,221.33,1.5975949]
[1758552950385,26.0,221.46,221.39,1.5975949]
[1758552950593,4.51446887,221.51,221.44,1.5975949]
[1758552951155,4.51410265,221.53,221.46,1.5975949]
[1758552951386,4.51410265,221.53,221.48,1.5975949]
[1758552951564,0.67,221.55,221.48,1.5975949]
[1758552953598,1.5975949,221.56,221.47,1.5975949]
[1758552954098,1.5975949,221.56,221.49,1.5975949]
[1758552954403,1.5975949,221.58,221.49,1.5975949]
[1758552954590,1.5975949,221.58,221.49,2.2975949]
[1758552955665,1.5975949,221.58,221.49,6.8123511]
[1758552955867,0.67,221.57,221.49,6.8123511]
[1758552956067,0.67,221.57,221.5,0.7]
[1758552957906,0.69,221.61,221.5,5.21452496]
[1758552958199,0.69,221.65,221.6,1.5975949]
[1758552958373,0.69,221.65,221.6,2.2975949]
[1758552958573,0.69,221.67,221.6,1.5975949]
[1758552958878,0.69,221.67,221.61,0.7]
[1758552959081,6.79841744,221.69,221.61,0.7]
[1758552959283,5.20082254,221.69,221.62,1.5975949]
[1758552959481,4.51082254,221.69,221.51,13.57128317]
[1758552959680,27.5975949,221.66,221.57,2.2975949]
[1758552959890,4.51182097,221.64,221.57,2.2975949]
[1758552960087,6.79941587,221.64,221.57,0.7]
[1758552960288,1.5975949,221.62,221.53,0.7]
[1758552960490,1.5975949,221.6,221.51,0.7]
[1758552960685,0.69,221.59,221.51,5.21446482]
[1758552960878,0.69,221.59,221.52,2.2975949]
[1758552961286,15.79137339,221.64,221.54,1.5975949]
[1758552961487,26.0,221.62,221.55,0.7]
[1758552962093,30.51241634,221.62,221.55,6.81124815]
[1758552962293,0.69,221.61,221.53,37.4575949]
[1758552962591,2.2875949,221.6,221.53,35.86]
[1758552962791,2.2875949,221.6,221.52,36.56]
[1758552962971,2.2875949,221.6,221.53,0.7]
[1758552963389,0.69,221.6,221.53,2.2975949]
[1758552964205,4.51283902,221.59,221.53,0.7]
[1758552964381,4.51283902,221.59,221.53,36.56]
[1758552966281,4.51283902,221.59,221.53,38.1575949]
[1758552967712,4.51259881,221.61,221.54,0.7]
[1758552968115,4.51259881,221.61,221.54,2.2975949]
[1758552969920,2.2875949,221.6,221.54,35.84]
[1758552970095,4.51283902,221.59,221.54,35.84]
[1758552970286,5.20283902,221.59,221.54,35.84]
[1758552970488,5.20283902,221.59,221.54,0.7]
[1758552970718,5.20283902,221.59,221.54,35.84]
[1758552971319,5.20283902,221.59,221.54,36.54]
[1758552971893,0.69,221.58,221.54,35.84]
[1758552972092,15.79493658,221.59,221.54,35.84]
[1758552972416,15.79493658,221.59,221.54,36.54]
[1758552972417,16.48493658,221.59,221.54,36.54]
[1758552973905,5.20258662,221.61,221.54,36.54]
[1758552974104,11.2801157,221.63,221.57,1.5975949]
[1758552974105,4.51202581,221.63,221.57,1.5975949]
[1758552974311,16.48066094,221.65,221.58,0.7]
[1758552974914,5.20161741,221.65,221.59,1.5975949]
[1758552975119,5.20161741,221.65,221.59,2.2875949]
[1758552976523,4.51161741,221.65,221.59,2.2875949]
[1758552977625,0.72,221.65,221.59,2.2875949]
[1758552978138,1.5975949,221.63,221.59,35.82]
[1758552978322,2.3175949,221.63,221.59,35.82]
[1758552978791,0.72,221.62,221.59,35.82]
[1758552979495,4.51243174,221.61,221.59,35.82]
[1758552980128,0.72,221.68,221.6,0.69]
[1758552980306,2.3175949,221.67,221.59,35.82]
[1758552980623,2.3175949,221.67,221.6,0.69]
[1758552981318,15.78871942,221.68,221.6,2.2875949]
[1758552981524,15.78871942,221.68,221.61,0.69]
[1758552981728,0.72,221.67,221.61,0.19]
[1758552982024,5.23120228,221.68,221.61,0.19]
[1758552982827,5.23120228,221.68,221.61,4.70239703]
[1758552983029,4.51081525,221.69,221.62,1.5975949]
[1758552983333,0.72,221.71,221.61,4.51239703]
[1758552983334,0.72,221.71,221.61,15.7934764]
[1758552983630,0.72,221.71,221.66,1.5975949]
[1758552983833,0.72,221.7,221.66,35.82]
[1758552984130,0.72,221.69,221.66,35.82]
[1758552984502,0.72,221.68,221.66,35.82]
[1758552984808,0.72,221.67,221.66,35.82]
[1758552985011,0.72,221.67,221.6,6.78023027]
[1758552985232,0.72,221.67,221.61,35.8]
[1758552985813,5.23122461,221.67,221.61,35.8]
[1758552987231,5.23122461,221.67,221.61,35.3]
[1758552987937,5.23122461,221.67,221.61,35.96]
[1758552988119,5.23122461,221.67,221.61,40.47239029]
[1758552988935,2.2575949,221.71,221.62,2.2575949]
[1758552989243,2.2575949,221.71,221.63,0.66]
[1758552989537,4.5105999,221.7,221.63,0.66]
[1758552989743,5.1705999,221.7,221.63,0.66]
[1758552990225,0.2,221.74,221.68,1.5975949]
[1758552990431,0.2,221.74,221.69,35.8]
[1758552990730,0.66,221.73,221.69,35.8]
[1758552991324,0.66,221.72,221.69,35.8]
[1758552991617,0.66,221.71,221.69,35.8]
[1758552991824,0.66,221.73,221.69,35.8]
[1758552992032,0.66,221.72,221.69,35.8]
[1758552992431,0.66,221.71,221.69,35.8]
[1758552992728,0.66,221.7,221.68,35.78]
[1758552993527,15.78579489,221.72,221.68,35.78]
[1758552993828,4.51080337,221.69,221.68,35.78]
[1758552994045,4.51080337,221.69,221.67,35.78]
[1758552994218,0.66,221.7,221.67,35.78]
[1758552994417,5.17062712,221.7,221.67,35.78]
[1758552995021,4.51062712,221.7,221.67,35.78]
[1758552995415,4.51037292,221.72,221.68,1.5975949]
[1758552995831,5.17037292,221.72,221.68,1.5975949]
[1758552996630,15.78585551,221.72,221.68,1.5975949]
[1758552996949,0.66,221.71,221.67,34.78]
[1758552997743,4.51037292,221.72,221.67,34.78]
[1758552997937,4.51037292,221.72,221.68,1.5975949]
[1758552998122,4.51037292,221.72,221.66,4.51137169]
[1758552998123,0.66,221.71,221.66,35.78]
[1758552998439,0.66,221.7,221.66,35.78]
[1758552998618,0.66,221.69,221.65,35.78]
[1758552998811,0.66,221.68,221.65,35.78]
[1758552999736,0.66,221.67,221.65,35.78]
[1758553000121,4.51141387,221.66,221.65,35.78]
[1758553001339,15.78871073,221.68,221.65,35.78]
[1758553001536,0.66,221.67,221.65,35.78]
[1758553001752,4.51100685,221.68,221.65,35.78]
[1758553002045,5.17100685,221.68,221.65,35.78]
[1758553002254,0.66,221.67,221.65,35.78]
[1758553002716,0.66,221.67,221.61,2.2575949]
[1758553002920,0.66,221.67,221.62,35.76]
[1758553003535,4.51141387,221.66,221.62,35.76]
[1758553003753,4.51141387,221.66,221.63,35.76]
[1758553005925,15.78923624,221.67,221.63,35.76]
[1758553006154,2.48978035,221.64,221.58,11.27751714]
[1758553006345,2.48978035,221.64,221.56,13.50236508]
[1758553006346,0.66,221.63,221.59,34.76]
[1758553006659,0.66,221.62,221.59,35.76]
[1758553008250,4.51243174,221.61,221.59,35.76]
[1758553008941,4.51243174,221.61,221.56,0.66]
[1758553009129,0.66,221.6,221.52,0.66]
[1758553009455,3.14978035,221.6,221.53,35.76]
[1758553009652,0.66,221.6,221.54,0.66]
[1758553009853,4.51243174,221.61,221.55,2.48978035]
[1758553010059,4.51243174,221.61,221.56,0.66]
[1758553010349,0.66,221.64,221.57,0.66]
[1758553010556,0.66,221.64,221.58,35.76]
[1758553011428,4.51202454,221.63,221.58,35.76]
[1758553011736,5.17202454,221.63,221.58,35.76]
[1758553012856,4.51202454,221.63,221.58,40.27302807]
[1758553013059,48.55507163,221.68,221.6,2.48978035]
[1758553013060,4.51100685,221.68,221.6,2.48978035]
[1758553013256,4.51100685,221.68,221.62,2.48978035]
[1758553013554,4.51100685,221.68,221.63,36.42]
[1758553013735,0.66,221.67,221.63,35.76]
[1758553013930,4.51100685,221.68,221.63,35.76]
[1758553014149,5.17100685,221.68,221.63,35.76]
[1758553014358,5.17100685,221.68,221.63,36.42]
[1758553014532,5.17100685,221.68,221.63,35.76]
[1758553015131,5.17100685,221.68,221.63,36.42]
[1758553015555,7.66057662,221.7,221.63,36.42]
[1758553015856,5.17079627,221.7,221.63,36.42]
[1758553016360,5.17079627,221.7,221.63,40.93201863]
[1758553016729,0.66,221.7,221.63,40.27201863]
[1758553016950,4.51041342,221.71,221.64,3.14978035]
[1758553018257,4.51041342,221.71,221.64,7.66144341]
[1758553019034,4.51041342,221.71,221.64,3.14978035]
[1758553019434,4.51041342,221.71,221.64,0.66]
[1758553020258,5.23041342,221.71,221.64,5.17179125]
[1758553021360,5.23041342,221.71,221.64,0.66]